Workbook

Sheet DEPOTS
A2: Nombre de documents de musique imprimée reçus par dépôt légal
A3: Année | B3: 2007 | C3: 2008 | D3: 2009 | E3: 2010 | F3: 2011 | G3: 2012 | H3: 2013 | I3: 2014 | J3: 2016 | K3: 2017 | L3: 2018
A4: Dépôts | B4: 2205 | C4: 2161 | D4: 1501 | E4: 1661 | F4: 2501 | G4: 1667 | H4: 2461 | I4: 1908 | J4: 1771 | K4: 2121 | L4: 2232
A5: Source : Entrées dépôt légal

Sheet TOP 20
A2: Liste des 20 principaux déposants par année de dépôt (2014-2017)
C3: Déposant | D3: 2014 | G3: Déposant | H3: 2015 | K3: Déposant | L3: 2016 | O3: Déposant | P3: 2017 | S3: Déposant | T3: 2018
C4: UNIVERSAL MUSIC PUBLISHING | D4: 878 | G4: UNIVERSAL MUSIC PUBLISHING | H4: 479 | K4: UNIVERSAL MUSIC PUBLISHING | L4: 738 | O4: UNIVERSAL MUSIC PUBLISHING | P4: 606 | S4: UNIVERSAL MUSIC PUBLISHING | T4: 640
C5: HENRY LEMOINE | D5: 375 | G5: DELATOUR FRANCE | H5: 154 | K5: DELATOUR FRANCE | L5: 147 | O5: HENRY LEMOINE | P5: 209 | S5: PIERRE LAFITAN | T5: 234
C6: PIERRE LAFITAN | D6: 267 | G6: PIERRE LAFITAN | H6: 134 | K6: HENRY LEMOINE | L6: 99 | O6: LA BOITE A CHANSONS | P6: 178 | S6: MUSIQUES EN FLANDRE | T6: 140
C7: DELATOUR FRANCE | D7: 147 | G7: LA BOITE A CHANSONS | H7: 115 | K7: INTERNATIONAL MUSIC DIFFUSION | L7: 78 | O7: PIERRE LAFITAN | P7: 163 | S7: LA BOÎTE À CHANSONS | T7: 127
C8: LA BOITE A CHANSONS | D8: 123 | G8: INTERNATIONAL MUSIC DIFFUSION | H8: 82 | K8: ROBERT MARTIN | L8: 72 | O8: MUSIQUES EN FLANDRE | P8: 153 | S8: HENRY LEMOINE | T8: 104
C9: ROBERT MARTIN | D9: 86 | G9: GÉRARD BILLAUDOT | H9: 80 | K9: LA BOITE A CHANSONS | L9: 56 | O9: EDITIONS MUSICALES RUBIN | P9: 127 | S9: MAISON ONA | T9: 88
C10: GÉRARD BILLAUDOT | D10: 64 | G10: ROBERT MARTIN | H10: 78 | K10: SEMPRE PIU EDITIONS | L10: 53 | O10: DELATOUR FRANCE | P10: 68 | S10: À CŒUR JOIE | T10: 76
C11: SEMPRE PIÙ ÉDITIONS | D11: 61 | G11: SEMPRE PIÙ ÉDITIONS | H11: 49 | K11: A CŒUR JOIE | L11: 47 | O11: SEMPRE PIU EDITIONS | P11: 62 | S11: GERARD BILLAUDOT | T11: 73
C12: A COEUR JOIE | D12: 54 | G12: ÉDITIONS FRANÇOIS DHALMANN | H12: 46 | K12: EDITIONS 75 | L12: 42 | O12: GERARD BILLAUDOT | P12: 55 | S12: INTERNATIONAL MUSIC DIFFUSION | T12: 67
C13: SYMÉTRIE | D13: 45 | G13: A COEUR JOIE | H13: 46 | K13: REMONTER LA RIVIERE | L13: 39 | O13: EDITIONS DA CAMERA | P13: 51 | S13: ROBERT MARTIN | T13: 53
C14: ÉDITIONS FRANÇOIS DHALMANN | D14: 36 | G14: PEERMUSIC | H14: 45 | K14: LE CHANT DU MONDE | L14: 35 | O14: ROBERT MARTIN | P14: 38 | S14: DELATOUR FRANCE | T14: 49
C15: LES CAHIERS DU TOURDION | D15: 28 | G15: MUSIQUES EN FLANDRE | H15: 44 | K15: HAL LEONARD MGB | L15: 27 | O15: À CŒUR JOIE | P15: 36 | S15: HAL LEONARD MGB | T15: 41
C16: LES EDITIONS BUISSONNIERES | D16: 22 | G16: HENRY LEMOINE | H16: 43 | K16: SALABERT | L16: 24 | O16: REMONTER LA RIVIERE | P16: 29 | S16: SEMPRE PIU | T16: 39
C17: CENTRE MUSIQUE BAROQUE VERSAILLES | D17: 20 | G17: ALFONCE PRODUCTION | H17: 40 | K17: OUSTALOT | L17: 23 | O17: HAL LEONARD MGB | P17: 29 | S17: ZABAK PRODUCTIONS | T17: 35
C18: ÉDITIONS MUSICALES FORTIN | D18: 20 | G18: ASSOCIATION KLARTHE | H18: 35 | K18: SYMETRIE | L18: 22 | O18: ALPHONSE LEDUC | P18: 22 | S18: EDITIONS BUISSONNIERES | T18: 34
C19: COMBRE | D19: 18 | G19: DURAND | H19: 29 | K19: LES EDITIONS BUISSONNIERES | L19: 21 | O19: EDITIONS BUISSONNIERES | P19: 22 | S19: EDITIONS DA CAMERA | T19: 31
C20: LE CHANT DU MONDE | D20: 17 | G20: SYMÉTRIE | H20: 24 | K20: CENTRE MUSIQUE BAROQUE VERSAILLES | L20: 19 | O20: ILL AUX ROSEAUX | P20: 16 | S20: AÈDE MUSIC | T20: 26
C21: DURAND | D21: 15 | G21: EDITIONS DU PETIT PAGE | H21: 24 | K21: YLC FLUTE ASSOCIATION | L21: 15 | O21: SYMETRIE | P21: 16 | S21: ÉDITIONS AD LIBITUM | T21: 19
C22: BRASAVEL | D22: 13 | G22: IEMJ (EDITIONS DE L') | H22: 23 | K22: LE LUTH DORE | L22: 12 | O22: MEZZA VOCCE | P22: 11 | S22: W48 MUSIC | T22: 19
C23: ILL AUX ROSEAUX | D23: 12 | G23: W48 MUSIC | H23: 20 | K23: LES EDITIONS MUSICALES ARCHIPEL | L23: 10 | O23: IN NOMINE | P23: 11 | S23: AGIR ÉDITIONS | T23: 18
B24: Total 20 premiers éditeurs | D24: =SUM(D4:D23) -> 2301 | F24: Total 20 premiers éditeurs | H24: =SUM(H4:H23) -> 1590 | J24: Total 20 premiers éditeurs | L24: =SUM(L4:L23) -> 1579 | N24: Total 20 premiers éditeurs | P24: =SUM(P4:P23) -> 1902 | R24: Total 20 premiers éditeurs | T24: =SUM(T4:T23) -> 1913

Sheet CATEGORIES DEPOSANTS
A2: Nombre de dépôt et déposants musique imprimée par catégorie déposant (2014-2018)
A3: DL Musique éditeur | B3: 2014 | E3: 2015 | H3: 2016 | K3: 2017 | N3: 2018
A4: Catégorie déposant | B4: Nb déposants | C4: Nb nouveaux déposants | D4: nb dépôts | E4: Nb déposants | F4: Nb nouveaux déposants | G4: nb dépôts | H4: Nb déposants | I4: Nb nouveaux déposants | J4: nb dépôts | K4: Nb déposants | L4: Nb nouveaux déposants | M4: nb dépôts | N4: Nb déposants | O4: Nb nouveaux déposants | P4: nb dépôts
A5: Associations et assimilés | B5: 14 | C5: 6 | D5: 32 | E5: 16 | F5: 6 | G5: 78 | H5: 10 | I5: 0 | J5: 36 | K5: 10 | L5: 2 | M5: 46 | N5: 6 | O5: 1 | P5: 56
A6: Auteurs auto-édités | B6: 19 | C6: 6 | D6: 40 | E6: 21 | F6: 6 | G6: 54 | H6: 14 | I6: 2 | J6: 88 | K6: 9 | L6: 1 | M6: 16 | N6: 22 | O6: 14 | P6: 49
A7: Collectivité locale | B7: 0 | C7: 0 | D7: 0 | E7: 0 | F7: 0 | G7: 0 | H7: 0 | I7: 0 | J7: 0 | K7: 0 | L7: 0 | M7: 0 | N7: 0 | O7: 0 | P7: 0
A8: Collectivités publiques | B8: 1 | C8: 0 | D8: 1 | E8: 2 | F8: 1 | G8: 3 | H8: 0 | I8: 0 | J8: 0 | K8: 0 | L8: 0 | M8: 0 | N8: 0 | O8: 0 | P8: 0
A9: Déposants réguliers/occasionnels | B9: 14 | C9: 3 | D9: 143 | E9: 18 | F9: 6 | G9: 220 | H9: 14 | I9: 9 | J9: 89 | K9: 6 | L9: 6 | M9: 54 | N9: 22 | O9: 13 | P9: 378
A10: (Déposant étranger) | B10: 0 | C10: 0 | D10: 0 | E10: 1 | F10: 1 | G10: 1 | H10: 0 | I10: 0 | J10: 0 | K10: 0 | L10: 0 | M10: 0 | N10: 0 | O10: 0 | P10: 0
A11: (Diffuseur) | B11: 0 | C11: 0 | D11: 0 | E11: 1 | F11: 1 | G11: 1 | H11: 1 | I11: 1 | J11: 27 | K11: 1 | L11: 0 | M11: 1 | N11: 0 | O11: 0 | P11: 0
A12: Editeurs étrangers | B12: 1 | C12: 1 | D12: 1 | E12: 0 | F12: 0 | G12: 0 | H12: 0 | I12: 0 | J12: 0 | K12: 0 | L12: 0 | M12: 0 | N12: 0 | O12: 0 | P12: 0
A13: Editeurs professionnels | B13: 41 | C13: 5 | D13: 2240 | E13: 42 | F13: 8 | G13: 1546 | H13: 41 | I13: 13 | J13: 1504 | K13: 18 | L13: 5 | M13: 1989 | N13: 33 | O13: 16 | P13: 1738
A14: Imprimeurs professionnels | B14: 0 | C14: 0 | D14: 0 | H14: 0 | I14: 0 | J14: 0 | K14: 0 | L14: 0 | M14: 0 | N14: 0 | O14: 0 | P14: 0
A15: Personne physique | B15: 1 | C15: 0 | D15: 4 | E15: 1 | F15: 0 | G15: 4 | H15: 1 | I15: 0 | J15: 7 | K15: 2 | L15: 1 | M15: 14 | N15: 3 | O15: 1 | P15: 11
A16: Sociétés et assimilés | B16: 0 | C16: 0 | D16: 0 | H16: 0 | I16: 0 | J16: 0 | K16: 1 | L16: 0 | M16: 1 | N16: 0 | O16: 0 | P16: 0
A17: (Pas de catégorie de déposant) | E17: 1 | F17: 1 | G17: 1 | H17: 1 | I17: 1 | J17: 1 | K17: 0 | L17: 0 | M17: 0 | N17: 0 | O17: 0 | P17: 0
A18: Total DL Musique éditeur | B18: =SUM(B5:B16) -> 91 | C18: =SUM(C5:C16) -> 21 | D18: =SUM(D5:D16) -> 2461 | E18: =SUM(E5:E17) -> 103 | F18: =SUM(F5:F17) -> 30 | G18: =SUM(G5:G17) -> 1908 | H18: 94 | I18: 39 | J18: 1771 | K18: =SUM(K5:K17) -> 47 | L18: 15 | M18: 2121 | N18: 86 | O18: 45 | P18: 2232
A19: Source : Entrées dépôt légal

Sheet REPARTITION REGIONALE
A1: Nombre de dépôt et déposants musique imprimée par région (2016-2018)
B4: Département | C4: Nb déposants | D4: Nb dépôts | G4: 2016 | I4: 2017 | K4: 2018
B5: Ardèche | C5: 1 | D5: 49 | G5: Nb déposants | H5: Nb dépôts | I5: Nb déposants | J5: Nb dépôts | K5: Nb déposants | L5: Nb dépôts
B6: Puy-de-Dôme | C6: 1 | D6: 2 | F6: Auvergne - Rhône Alpes | G6: 13 | H6: 258 | I6: 11 | J6: 277 | K6: 8 | L6: 182
B7: Rhône | C7: 6 | D7: 131 | F7: Bourgogne - Franche-Comté | G7: 4 | H7: 75 | I7: 4 | J7: 91 | K7: 6 | L7: 96
B8: Auvergne-Rhône Alpes | C8: =SUM(C5:C7) -> 8 | D8: =SUM(D5:D7) -> 182 | F8: Bretagne | G8: 4 | H8: 35 | I8: 6 | J8: 26 | K8: 2 | L8: 35
F9: Centre - Val-de-Loire | G9: 5 | H9: 11 | I9: 8 | J9: 22 | K9: 10 | L9: 29
B10: Côte d'Or | C10: 1 | D10: 3 | F10: Grand Est | G10: 4 | H10: 38 | I10: 6 | J10: 49 | K10: 2 | L10: 55
B11: Doubs | C11: 1 | D11: 6 | F11: Hauts-de-France | G11: 3 | H11: 6 | I11: 4 | J11: 165 | K11: 6 | L11: 141
B12: Jura | C12: 1 | D12: 1 | F12: Ile-de-France | G12: 43 | H12: 1184 | I12: 30 | J12: 1273 | K12: 2 | L12: 1504
B13: Saône-et-Loire | C13: 3 | D13: 86 | F13: Normandie | G13: 3 | H13: 30 | I13: 8 | J13: 4 | K13: 54 | L13: 5
B14: Bourgogne-Franche Comté | C14: =SUM(C10:C13) -> 6 | D14: =SUM(D10:D13) -> 96 | F14: Nouvelle-Aquitaine | G14: 2 | H14: 23 | I14: 6 | J14: 20 | K14: 2 | L14: 30
F15: Occitanie | G15: 4 | H15: 5 | I15: 4 | J15: 4 | K15: 5 | L15: 12
B16: Côte d'Armor | C16: 1 | D16: 1 | F16: Provence-Alpes-Côte d'Azur | G16: 5 | H16: 74 | I16: 3 | J16: 182 | K16: 4 | L16: 138
B17: Finistère | C17: 1 | D17: 34 | F17: Outre-Mer | G17: 0 | H17: 0 | I17: 1 | J17: 1 | K17: 7 | L17: 5
B18: Bretagne | C18: =SUM(C16:C17) -> 2 | D18: =SUM(D16:D17) -> 35 | F18: Importation | G18: 1 | H18: 4 | I18: 3 | J18: 11 | K18: 0 | L18: 0
F19: Total | G19: =SUM(G6:G18) -> 91 | H19: =SUM(H6:H18) -> 1743 | I19: 94 | J19: 2125 | K19: 108 | L19: 2232
B20: Eure | C20: 1 | D20: 3
B21: Eure-et-Loire | C21: 1 | D21: 3 | F21: Auvergne - Rhône Alpes | G21: 8
B22: Indre-et-Loire | C22: 1 | D22: 4 | F22: Bourgogne - Franche-Comté | G22: 6
B23: Loire Atlantique | C23: 2 | D23: 13 | F23: Bretagne | G23: 2
B24: Loiret | C24: 1 | D24: 1 | F24: Centre - Val-de-Loire | G24: 10
B25: Maine-et-Loire | C25: 2 | D25: 3 | F25: Grand Est | G25: 2
B26: Mayenne | C26: 1 | D26: 1 | F26: Hauts-de-France | G26: 6
B27: Sarthe | C27: 1 | D27: 1 | F27: Ile-de-France | G27: 2
B28: Centre-Val de Loire | C28: =SUM(C20:C27) -> 10 | D28: =SUM(D20:D27) -> 29 | F28: Normandie | G28: 54
F29: Nouvelle-Aquitaine | G29: 2
B30: La Réunion | C30: 1 | D30: 1 | F30: Occitanie | G30: 5
B31: Martinique | C31: 1 | D31: 4 | F31: Provence-Alpes-Côte d'Azur | G31: 4
B32: Département et région d'Outre mer | C32: =SUM(C30:C31) -> 2 | D32: =SUM(D30:D31) -> 5 | F32: Outre-Mer | G32: 7
B34: Bas-Rhin | C34: 1 | D34: 3 | F34: Auvergne - Rhône Alpes | G34: 182
B35: Haut-Rhin | C35: 2 | D35: 43 | F35: Bourgogne - Franche-Comté | G35: 96
B36: Meurthe-et-Moselle | C36: 1 | D36: 6 | F36: Bretagne | G36: 35
B37: Territoire de Belfort | C37: 1 | D37: 2 | F37: Centre - Val-de-Loire | G37: 29
B38: Vosges | C38: 1 | D38: 1 | F38: Grand Est | G38: 55
B39: Grand Est | C39: =SUM(C34:C38) -> 6 | D39: =SUM(D34:D38) -> 55 | F39: Hauts-de-France | G39: 141
F40: Ile-de-France | G40: 1504
B41: Nord | C41: 2 | D41: 140 | F41: Normandie | G41: 5
B42: Oise | C42: 1 | D42: 1 | F42: Nouvelle-Aquitaine | G42: 30
B43: Hauts de France | C43: =SUM(C41:C42) -> 3 | D43: =SUM(D41:D42) -> 141 | F43: Occitanie | G43: 12
F44: Provence-Alpes-Côte d'Azur | G44: 138
B45: Essonne | C45: 2 | D45: 20 | F45: Outre-Mer | G45: 5
B46: Hauts-de-Seine | C46: 4 | D46: 13
B47: Paris | C47: 32 | D47: 1159 | F47: Essonne | G47: 2
B48: Seine-et-Marne | C48: 3 | D48: 13 | F48: Hauts-de-Seine | G48: 4
B49: Seine-St-Denis | C49: 4 | D49: 17 | F49: Paris | G49: 32
B50: Val-de-Marne | C50: 4 | D50: 19 | F50: Seine-et-Marne | G50: 3
B51: Val-d'Oise | C51: 1 | D51: 235 | F51: Seine-St-Denis | G51: 4
B52: Yvelines | C52: 3 | D52: 28 | F52: Val-de-Marne | G52: 4
B53: Île de France | C53: =SUM(C45:C52) -> 53 | D53: =SUM(D45:D52) -> 1504 | F53: Val-d'Oise | G53: 1
F54: Yvelines | G54: 3
B55: Manche | C55: 2 | D55: 5
B56: Normandie | C56: =SUM(C55) -> 2 | D56: =SUM(D55) -> 5
B58: Gironde | C58: 3 | D58: 24
B59: Pyrénées Atlantiques | C59: 2 | D59: 6
B60: Nouvelle Aquitaine | C60: =SUM(C58:C59) -> 5 | D60: =SUM(D58:D59) -> 30
B62: Gard | C62: 1 | D62: 1
B63: Haute Garonne | C63: 1 | D63: 1
B64: Hérault | C64: 1 | D64: 9
B65: Tarn | C65: 1 | D65: 1
B66: Occitanie | C66: =SUM(C62:C65) -> 4 | D66: =SUM(D62:D65) -> 12
B68: Alpes de Haute Provence | C68: 1 | D68: 1
B69: Alpes-maritimes | C69: 1 | D69: 3
B70: Bouches-du-Rhône | C70: 4 | D70: 7
B71: Hautes Alpes | C71: 1 | D71: 127
B72: Provence-Alpes-Côte d'Azur | C72: =SUM(C68:C71) -> 7 | D72: =SUM(D68:D71) -> 138

Sheet CLASSEMENT BGF
A2: Notices de partitions parues dans la Bibliographie nationale française
B3: 2014 | C3: 2015 | D3: 2016 | E3: 2017 | F3: 2018 | H3: Répartition par catégories
A4: Œuvres instrumentales | H4: Œuvres instrumentales | I4: 944
A5: 000. œuvres instrumentales | B5: 0 | C5: 0 | D5: 0 | E5: 0 | F5: 0 | H5: Œuvres vocales | I5: 1063
A6: 010. orchestre | B6: 97 | C6: 21 | D6: 45 | E6: 38 | F6: 51 | H6: Œuvres scéniques | I6: 37
A7: 020. instrument(s) soliste(s) et orchestre | B7: 41 | C7: 31 | D7: 27 | E7: 31 | F7: 32 | H7: Œuvres théoriques | I7: 1
A8: 030. musique de chambre | B8: 623 | C8: 511 | D8: 363 | E8: 481 | F8: 541 | H8: Œuvres pédagogiques | I8: 85
A9: 040. instrument soliste | B9: 1 | D9: 3 | E9: 3 | F9: 0 | H9: Autres œuvres musicales | I9: 39
A10: 041. instrument soliste à vent | B10: 52 | C10: 28 | D10: 14 | E10: 30 | F10: 46 | H10: Total général | I10: =SUM(I4:I9) -> 2169
A11: 042. instrument soliste à cordes | B11: 55 | C11: 58 | D11: 65 | E11: 63 | F11: 59
A12: 043. instrument soliste à clavier | B12: 228 | C12: 101 | D12: 114 | E12: 124 | F12: 158
A13: 044. instrument soliste à percussion | B13: 8 | C13: 4 | D13: 1 | E13: 4 | F13: 5
A14: 045. instrument soliste indéterminé | B14: 0 | C14: 0 | D14: 0 | E14: 0 | F14: 21
A15: 050. musique électroacoustique | B15: 16 | C15: 2 | D15: 4 | E15: 21 | F15: 31
A16: Œuvres vocales (avec ou sans accompagnement)
A17: 100. œuvres vocales (avec ou sans accompagnement) | B17: 6 | C17: 1 | D17: 2 | E17: 0 | F17: 2
A18: 110. œuvres vocales sacrées | B18: 1 | C18: 0 | D18: 0 | E18: 0 | F18: 0
A19: 111. œuvres vocales sacrées (1 ou 2 voix solistes) | B19: 11 | C19: 13 | D19: 4 | E19: 10 | F19: 15
A20: 112. œuvres vocales sacrées (ensembles vocaux) | B20: 73 | C20: 49 | D20: 44 | E20: 65 | F20: 126
A21: 120. œuvres vocales profanes | B21: 1 | D21: 0 | E21: 0 | F21: 0
A22: 121. œuvres vocales profanes (1 ou 2 voix solistes) | B22: 955 | C22: 409 | D22: 682 | E22: 650 | F22: 670
A23: 122. œuvres vocales profanes (ensembles vocaux) | B23: 252 | C23: 204 | D23: 127 | E23: 357 | F23: 219
A24: 130. œuvres vocales pour enfants | B24: 67 | C24: 8 | D24: 21 | E24: 13 | F24: 31
A25: Œuvres scéniques
A26: 200. œuvres scéniques | B26: 1 | C26: 0 | D26: 1 | E26: 0 | F26: 1
A27: 210. opéra | B27: 27 | C27: 25 | D27: 21 | E27: 26 | F27: 36
A28: 220. ballet | B28: 1 | C28: 0 | D28: 0 | E28: 0 | F28: 0
A29: 230. musique de scène | B29: 2 | C29: 0 | D29: 0 | E29: 0 | F29: 0
A30: 240. musique de film | B30: 8 | C30: 0 | D30: 0 | E30: 0 | F30: 0
A31: 250. œuvres scéniques pour enfants | B31: 5 | C31: 0 | D31: 0 | E31: 1 | F31: 0
A32: Œuvres théoriques
A33: 300. œuvres théoriques | B33: 8 | C33: 7 | D33: 0 | E33: 1 | F33: 1
A34: Œuvres pédagogiques
A35: 400. œuvres pédagogiques | B35: 49 | C35: 36 | D35: 65 | E35: 54 | F35: 85
A36: Collections
A37: 700. collections | B37: 16 | C37: 15 | D37: 14 | E37: 13 | F37: 12
A38: Autres œuvres musicales
A39: 800. œuvres de genres divers | B39: 5 | C39: 4 | D39: 1 | E39: 1 | F39: 1
A40: 850. œuvres de genre indéterminé | B40: 109 | C40: 53 | D40: 66 | E40: 66 | F40: 38
A41: Total général | B41: =SUM(B5:B40) -> 2718 | C41: =SUM(C5:C40) -> 1580 | D41: =SUM(D5:D40) -> 1684 | E41: =SUM(E5:E40) -> 2052 | F41: =SUM(F5:F40) -> 2181
A42: Source : Bibliographie nationale française - Musique imprimée

Sheet DEPOSANTS PAR DEPARTEMENT
